lending/lending_fUSD_20251116
["ID","MTS","AMOUNT","RATE_DAILY","PERIOD"]
[394128128,1763310742367,-500.0,0.00041448,120]
[394128129,1763310742422,-308.2020533,0.00041448,120]
[394128130,1763310742476,-500.0,0.00041448,120]
[394128131,1763310742531,-500.0,0.00041448,120]
[394128132,1763310742584,-612.74369041,0.00041448,120]
[394128133,1763310742636,-500.0,0.00041448,120]
[394128134,1763310742693,-363.9880518,0.00041448,120]
[394128135,1763310742747,-500.0,0.00041448,120]
[394128136,1763310742801,-500.0,0.00041448,120]
[394128137,1763310742854,-210.13604443,0.00041448,120]
[394128138,1763310742913,-500.0,0.00041448,120]
[394128139,1763310742971,-368.61098267,0.00041448,120]
[394128140,1763310743031,-500.0,0.00041448,120]
[394128141,1763310743090,-500.0,0.00041448,120]
[394128142,1763310743147,-500.0,0.00041448,120]
[394128143,1763310743204,-500.0,0.00041448,120]
[394128144,1763310743262,-500.0,0.00041448,120]
[394128145,1763310743320,-500.0,0.00041448,120]
[394128146,1763310743380,-570.65807703,0.00041448,120]
[394128147,1763310743442,-500.0,0.00041448,120]
[394128148,1763310743498,-500.0,0.00041448,120]
[394128149,1763310743556,-500.0,0.00041448,120]
[394128150,1763310743612,-500.0,0.00041448,120]
[394128151,1763310743672,-500.0,0.00041448,120]
[394128152,1763310743731,-500.0,0.00041448,120]
[394128153,1763310743789,-349.25792144,0.00041448,120]
[394128154,1763310743850,-617.44145575,0.00041448,120]
[394128155,1763310743906,-388.93665379,0.00041448,120]
[394128156,1763310743966,-500.0,0.00041448,120]
[394128157,1763310744026,-512.26614104,0.00041448,120]
[394128158,1763310744091,-500.0,0.00041448,120]
[394128159,1763310744153,-500.0,0.00041448,120]
[394128160,1763310744216,-500.0,0.00041448,120]
[394128161,1763310744274,-286.1453452,0.00041448,120]
[394128162,1763310744330,-500.0,0.00041448,120]
[394128163,1763310744387,-500.0,0.00041448,120]
[394128164,1763310744446,-500.0,0.00041448,120]
[394128165,1763310744504,-500.0,0.00041448,120]
[394128166,1763310744558,-500.0,0.00041448,120]
[394128167,1763310744612,-500.0,0.00041448,120]
[394128168,1763310744668,-190.62996862,0.00041448,120]
[394128169,1763310744727,-500.0,0.00041448,120]
[394128170,1763310744785,-155.99579153,0.00041448,120]
[394128171,1763310744843,-500.0,0.00041448,120]
[394128172,1763310744900,-500.0,0.00041448,120]
[394128173,1763310744955,-500.0,0.00041448,120]
[394128174,1763310745011,-500.0,0.00041448,120]
[394128175,1763310745066,-500.0,0.00041448,120]
[394128176,1763310745119,-416.56490561,0.00041448,120]
[394128177,1763310745172,-500.0,0.00041448,120]
[394128178,1763310745226,-500.0,0.00041448,120]
[394128179,1763310745408,-500.0,0.00041448,120]
[394128180,1763310745468,-500.0,0.00041448,120]
[394128181,1763310745526,-530.44688658,0.00041448,120]
[394128182,1763310745584,-500.0,0.00041448,120]
[394128183,1763310745645,-500.0,0.00041448,120]
[394128184,1763310745700,-338.73506902,0.00041448,120]
[394128185,1763310745754,-500.0,0.00041448,120]
[394128186,1763310745806,-500.0,0.00041448,120]
[394128187,1763310745860,-500.0,0.00041448,120]
[394128188,1763310745912,-500.0,0.00041448,120]
[394128189,1763310745965,-500.0,0.00041448,120]
[394128190,1763310746018,-500.0,0.00041448,120]
[394128191,1763310746071,-500.0,0.00041448,120]
[394128192,1763310746123,-500.0,0.00041448,120]
[394128193,1763310746175,-500.0,0.00041448,120]
[394128194,1763310746229,-500.0,0.00041448,120]
[394128195,1763310746283,-214.38051651,0.00041448,120]
[394128196,1763310746337,-271.70388939,0.00041448,120]
[394128197,1763310746392,-574.6,0.00041448,120]
[394128198,1763310746445,-574.6,0.00041448,120]
[394128199,1763310746499,-574.6,0.00041448,120]
[394128200,1763310746553,-500.0,0.00041448,120]
[394128201,1763310746607,-574.6,0.00041448,120]
[394128202,1763310746660,-500.0,0.00041448,120]
[394128203,1763310746717,-574.6,0.00041448,120]
[394128204,1763310746771,-626.76124734,0.00041448,120]
[394128205,1763310746830,-574.6,0.00041448,120]
[394128206,1763310746885,-574.6,0.00041448,120]
[394128208,1763310746940,-574.6,0.00041448,120]
[394128209,1763310746996,-574.6,0.00041448,120]
[394128210,1763310747053,-574.6,0.00041448,120]
[394128211,1763310747108,-574.6,0.00041448,120]
[394128212,1763310747163,-574.6,0.00041448,120]
[394128213,1763310747216,-500.0,0.00041448,120]
[394128214,1763310747271,-574.6,0.00041448,120]
[394128216,1763310747328,-500.0,0.00041448,120]
[394128217,1763310747384,-574.6,0.00041448,120]
[394128219,1763310747439,-500.0,0.00041448,120]
[394128220,1763310747514,-574.6,0.00041448,120]
[394128221,1763310747572,-567.04372998,0.00041448,120]
[394128222,1763310747626,-574.6,0.00041448,120]
[394128224,1763310747684,-574.6,0.00041448,120]
[394128225,1763310747738,-574.6,0.00041448,120]
[394128226,1763310747795,-574.6,0.00041448,120]
[394128227,1763310747847,-500.0,0.00041448,120]
[394128229,1763310747900,-574.6,0.00041448,120]
[394128230,1763310747953,-500.0,0.00041448,120]
[394128231,1763310748006,-574.6,0.00041448,120]
[394128232,1763310748058,-500.0,0.00041448,120]
[394128233,1763310748112,-574.6,0.00041448,120]
[394128235,1763310748161,-500.0,0.00041448,120]
[394128236,1763310748215,-574.6,0.00041448,120]
[394128237,1763310748278,-500.0,0.00041448,120]
[394128238,1763310748332,-574.68308584,0.00041448,120]
[394128240,1763310748383,-508.60557928,0.00041448,120]
[394128241,1763310748468,-500.0,0.00041448,120]
[394128242,1763310748522,-555.88084771,0.00041448,120]
[394128243,1763310748577,-500.0,0.00041448,120]
[394128245,1763310748627,-640.0,0.00041448,120]
[394128246,1763310748682,-500.0,0.00041448,120]
[394128247,1763310748735,-293.89756761,0.00041448,120]
[394128248,1763310748791,-500.0,0.00041448,120]
[394128249,1763310748844,-500.0,0.00041448,120]
[394128251,1763310748899,-624.6087539,0.00041448,120]
[394128252,1763310748953,-409.43591911,0.00041448,120]
[394128253,1763310749007,-621.98377119,0.00041448,120]
[394128254,1763310749057,-500.0,0.00041448,120]
[394128256,1763310749108,-500.0,0.00041448,120]
[394128257,1763310749158,-500.0,0.00041448,120]
[394128258,1763310749207,-438.28435201,0.00041448,120]
[394128259,1763310749260,-500.0,0.00041448,120]
[394128260,1763310749314,-364.05080426,0.00041448,120]
[394128262,1763310749367,-270.34918973,0.00041448,120]
[394128263,1763310749421,-500.0,0.00041448,120]
[394128264,1763310749475,-500.0,0.00041448,120]
[394128265,1763310749529,-500.0,0.00041448,120]
[394128267,1763310749759,-579.02315625,0.00041448,120]
[394128268,1763310749813,-500.0,0.00041448,120]
[394128269,1763310749868,-608.27019645,0.00041448,120]
[394128270,1763310749921,-500.0,0.00041448,120]
[394128271,1763310749974,-500.0,0.00041448,120]
[394128272,1763310750027,-500.0,0.00041448,120]
[394128273,1763310750079,-500.0,0.00041448,120]
[394128274,1763310750131,-500.0,0.00041448,120]
[394128275,1763310750182,-500.0,0.00041448,120]
[394128276,1763310750233,-500.0,0.00041448,120]
[394128277,1763310750285,-500.0,0.00041448,120]
[394128278,1763310750337,-500.0,0.00041448,120]
[394128279,1763310750390,-300.9040119,0.00041448,120]
[394128280,1763310750441,-326.61042888,0.00041448,120]
[394128281,1763310750493,-213.99435443,0.00041448,120]
[394128282,1763310750546,-500.0,0.00041448,120]
[394128283,1763310750599,-500.0,0.00041448,120]
[394128284,1763310750650,-641.11435591,0.00041448,120]
[394128285,1763310750702,-159.999994,0.00041448,120]
[394128286,1763310750752,-401.48356249,0.00041448,30]
[394128287,1763310750803,-500.0,0.00041448,120]
[394128288,1763310750856,-500.0,0.00041448,120]
[394128289,1763310750911,-372.17363645,0.00041448,120]
[394128290,1763310750965,-500.0,0.00041448,120]
[394128291,1763310751018,-500.0,0.00041448,120]
[394128292,1763310751067,-500.0,0.00041448,120]
[394128293,1763310751117,-409.40311405,0.00041448,120]
[394128294,1763310751168,-221.39482824,0.00041448,120]
[394128295,1763310751214,-400.47526879,0.00041448,120]
[394128296,1763310751263,-500.0,0.00041448,120]
[394128297,1763310751310,-314.96017597,0.00041448,120]
[394128298,1763310751360,-500.0,0.00041448,120]
[394128299,1763310751410,-500.0,0.00041448,120]
[394128300,1763310751459,-189.39858244,0.00041448,120]
[394128301,1763310751510,-357.07734912,0.00041448,120]
[394128302,1763310751560,-500.0,0.00041448,120]
[394128303,1763310751612,-500.0,0.00041448,120]
[394128304,1763310751663,-641.79361716,0.00041448,120]
[394128305,1763310751719,-500.0,0.00041448,120]
[394128306,1763310751772,-211.13172111,0.00041448,120]
[394128307,1763310751832,-441.71856853,0.00041448,120]
[394128308,1763310751888,-395.0059097,0.00041448,120]
[394128309,1763310751948,-450.29210956,0.00041448,120]
[394128310,1763310752006,-500.0,0.00041448,120]
[394128311,1763310752061,-500.0,0.00041448,120]
[394128312,1763310752117,-500.0,0.00041448,120]
[394128313,1763310752178,-500.0,0.00041448,120]
[394128314,1763310752235,-520.89441669,0.00041448,120]
[394128315,1763310752290,-403.73653399,0.00041448,120]
[394128316,1763310752342,-405.96269917,0.00041448,120]
[394128317,1763310752394,-235.98649771,0.00041448,120]
[394128318,1763310752459,-500.0,0.00041448,120]
[394128319,1763310752517,-500.0,0.00041448,120]
[394128320,1763310752571,-500.0,0.00041448,120]
[394128321,1763310752624,-500.0,0.00041448,120]
[394128322,1763310752683,-500.0,0.00041448,120]
[394128323,1763310752739,-403.74436474,0.00041448,120]
[394128324,1763310752796,-500.0,0.00041448,120]
[394128325,1763310752854,-420.77348387,0.00041448,120]
[394128326,1763310752905,-215.49586872,0.00041448,120]
[394128327,1763310752959,-500.0,0.00041448,120]
[394128328,1763310753012,-236.46326232,0.00041448,120]
[394128329,1763310753066,-506.70586102,0.00041448,120]
[394128330,1763310753122,-467.54051216,0.00041448,120]
[394128331,1763310753178,-500.0,0.00041448,120]
[394128332,1763310753231,-500.0,0.00041448,120]
[394128333,1763310753284,-500.0,0.00041448,120]
[394128334,1763310753339,-364.4401354,0.00041448,120]
[394128335,1763310753393,-222.55888812,0.00041448,120]
[394128336,1763310753452,-279.20362007,0.00041448,30]
[394128337,1763310753506,-387.12310831,0.00041448,120]
[394128338,1763310753564,-500.0,0.00041448,120]
[394128339,1763310753624,-500.0,0.00041448,120]
[394128340,1763310753685,-500.0,0.00041448,120]
[394128341,1763310753739,-500.0,0.00041448,120]
[394128342,1763310753795,-606.26282189,0.00041448,120]
[394128343,1763310753847,-500.0,0.00041448,120]
[394128344,1763310753902,-500.0,0.00041448,120]
[394128345,1763310753957,-631.67032439,0.00041448,120]
[394128346,1763310754010,-500.0,0.00041448,120]
[394128347,1763310754067,-500.0,0.00041448,120]
[394128348,1763310754121,-500.0,0.00041448,120]
[394128349,1763310754175,-500.0,0.00041448,120]
[394128350,1763310754234,-204.46385831,0.00041448,120]
[394128351,1763310754294,-243.66203996,0.00041448,120]
[394128352,1763310754354,-500.0,0.00041448,120]
[394128353,1763310754413,-500.0,0.00041448,120]
[394128354,1763310754475,-500.0,0.00041448,120]
[394128355,1763310754541,-511.88156641,0.00041448,120]
[394128356,1763310754602,-500.0,0.00041448,120]
[394128357,1763310754656,-500.0,0.00041448,120]
[394128358,1763310754708,-500.0,0.00041448,120]
[394128359,1763310754764,-625.05059607,0.00041448,120]
[394128360,1763310754817,-500.0,0.00041448,120]
[394128361,1763310754870,-309.76069408,0.00041448,120]
[394128362,1763310755070,-500.0,0.00041448,120]
[394128363,1763310755126,-500.0,0.00041448,120]
[394128364,1763310755180,-500.0,0.00041448,120]
[394128365,1763310755231,-500.0,0.00041448,120]
[394128366,1763310755285,-624.87911839,0.00041448,120]
[394128367,1763310755339,-405.17308532,0.00041448,120]
[394128368,1763310755391,-500.0,0.00041448,120]
[394128369,1763310755447,-500.0,0.00041448,120]
[394128370,1763310755502,-1123.86,0.00041448,120]
[394128371,1763310755560,-500.0,0.00041448,120]
[394128372,1763310755613,-1123.86,0.00041448,120]
[394128373,1763310755668,-500.63031475,0.00041448,120]
[394128374,1763310755723,-500.0,0.00041448,120]
[394128375,1763310755779,-1123.86,0.00041448,120]
[394128376,1763310755832,-500.0,0.00041448,120]
[394128377,1763310755885,-1123.86,0.00041448,120]
[394128378,1763310755943,-500.0,0.00041448,120]
[394128379,1763310755998,-1123.86,0.00041448,120]
[394128380,1763310756057,-500.0,0.00041448,120]
[394128381,1763310756113,-1123.86,0.00041448,120]
[394128382,1763310756166,-500.0,0.00041448,120]
[394128383,1763310756221,-1123.86,0.00041448,120]
[394128384,1763310756271,-500.0,0.00041448,120]
[394128385,1763310756322,-314.83370105,0.00041448,120]
[394128386,1763310756374,-1123.86,0.00041448,120]
[394128387,1763310756434,-500.0,0.00041448,120]
[394128388,1763310756490,-500.0,0.00041448,120]
[394128389,1763310756547,-500.0,0.00041448,120]
[394128390,1763310756605,-1123.86,0.00041448,120]
[394128391,1763310756657,-310.03505717,0.00041448,120]
[394128392,1763310756712,-500.0,0.00041448,120]
[394128393,1763310756768,-1123.86,0.00041448,120]
[394128394,1763310756822,-163.67513016,0.00041448,120]
[394128395,1763310756875,-1123.86,0.00041448,120]
[394128396,1763310756929,-167.37510846,0.00041448,30]
[394128397,1763310756990,-1123.86,0.00041448,120]
[394128398,1763310757047,-764.10775267,0.00041448,30]
[394128399,1763310757107,-1123.86,0.00041448,120]
[394128400,1763310757162,-1123.86,0.00041448,120]
[394128401,1763310757218,-292.84577828,0.00041448,120]
[394128402,1763310757271,-319.11663788,0.00041448,120]
[394128403,1763310757324,-1123.86,0.00041448,120]
[394128404,1763310757374,-500.0,0.00041448,120]
[394128405,1763310757430,-1123.86,0.00041448,120]
[394128406,1763310757483,-314.21852918,0.00041448,120]
[394128407,1763310757535,-1123.86,0.00041448,120]
[394128408,1763310757587,-1123.86,0.00041448,120]
[394128409,1763310757638,-500.0,0.00041448,120]
[394128410,1763310757687,-1123.86,0.00041448,120]
[394128411,1763310757734,-500.0,0.00041448,120]
[394128412,1763310757781,-1123.86,0.00041448,120]
[394128413,1763310757828,-321.36354166,0.00041448,120]
[394128414,1763310757876,-496.98378676,0.00041448,120]
[394128415,1763310757926,-1123.86,0.00041448,120]
[394128416,1763310757977,-1123.86,0.00041448,120]
[394128417,1763310758027,-1123.86,0.00041448,120]
[394128418,1763310758081,-176.64430722,0.00041448,120]
[394128419,1763310758135,-164.55320961,0.00041448,120]
[394128420,1763310758193,-409.06544553,0.00041448,120]
[394128421,1763310758245,-1012.31,0.00041448,120]
[394128422,1763310758299,-500.0,0.00041448,120]
[394128423,1763310758353,-500.0,0.00041448,120]
[394128424,1763310758406,-1012.31,0.00041448,120]
[394128425,1763310758456,-500.0,0.00041448,120]
[394128426,1763310758504,-500.0,0.00041448,120]
[394128427,1763310758552,-1012.31,0.00041448,120]
[394128428,1763310758600,-500.0,0.00041448,120]
[394128429,1763310758656,-500.0,0.00041448,120]
[394128430,1763310758708,-548.53178027,0.00041448,120]
[394128431,1763310758764,-1012.31,0.00041448,120]
[394128432,1763310758815,-500.0,0.00041448,120]
[394128433,1763310758867,-1012.31,0.00041448,120]
[394128434,1763310758920,-500.0,0.00041448,120]
[394128435,1763310758975,-1012.31,0.00041448,120]
[394128436,1763310759030,-378.54492134,0.00041448,120]
[394128437,1763310759083,-300.0,0.00041448,120]
[394128438,1763310759137,-1012.31,0.00041448,120]
[394128439,1763310759190,-1012.31,0.00041448,120]
[394128440,1763310759243,-1012.31,0.00041448,120]
[394128441,1763310759295,-1012.31,0.00041448,120]
[394128442,1763310759350,-1012.31,0.00041448,120]
[394128443,1763310759400,-1012.31,0.00041448,120]
[394128444,1763310759455,-1012.31,0.00041448,120]
[394128445,1763310759505,-210.3238993,0.00041448,30]
[394128446,1763310759556,-1012.31,0.00041448,120]
[394128447,1763310759607,-427.47795567,0.00041448,120]
[394128448,1763310759665,-1012.31,0.00041448,120]
[394128449,1763310759726,-1012.31,0.00041448,120]
[394128450,1763310759789,-1012.31,0.00041448,120]
[394128451,1763310759849,-1012.31,0.00041448,120]
[394128452,1763310759908,-1012.31,0.00041448,120]
[394128453,1763310759964,-326.32137404,0.00041448,120]
[394128454,1763310760019,-500.0,0.00041448,120]
[394128455,1763310760072,-500.0,0.00041448,120]
[394128456,1763310760345,-500.0,0.00041448,120]
[394128457,1763310760401,-500.0,0.00041448,120]
[394128458,1763310760452,-448.47124291,0.00041448,120]
[394128459,1763310760505,-625.15979086,0.00041448,10]
[394128460,1763310760554,-171.21928543,0.00041448,90]
[394128461,1763310760603,-500.0,0.00041448,120]
[394128462,1763310760659,-500.0,0.00041448,120]
[394128463,1763310760710,-500.0,0.00041448,120]
[394128464,1763310760762,-626.34262523,0.00041448,120]
[394128465,1763310760817,-1013.9373734,0.00041448,120]
[394128466,1763310760874,-264.56581519,0.00041448,120]
[394128467,1763310760938,-405.33390581,0.00041448,120]
[394128468,1763310761003,-338.78244157,0.00041448,120]
[394128469,1763310761061,-506.08401137,0.00041448,120]
[394128470,1763310761120,-426.64722563,0.00041448,30]
[394128471,1763310761174,-219.52263252,0.00041448,30]
[394128472,1763310761227,-500.0,0.00041448,120]
[394128473,1763310761281,-533.93581325,0.00041448,120]
[394128474,1763310761339,-404.27699831,0.00041448,120]
[394128475,1763310761395,-500.0,0.00041448,120]
[394128476,1763310761448,-296.9945798,0.00041448,120]
[394128477,1763310761500,-482.36535362,0.00041448,120]
[394128478,1763310761552,-500.0,0.00041448,120]
[394128479,1763310761601,-500.0,0.00041448,120]
[394128480,1763310761656,-500.0,0.00041448,120]
[394128481,1763310761708,-500.0,0.00041448,120]
[394128482,1763310761765,-500.0,0.00041448,120]
[394128483,1763310761819,-192.24776549,0.00041448,120]
[394128484,1763310761877,-523.72,0.00041448,120]
[394128485,1763310761932,-523.72,0.00041448,120]
[394128486,1763310761997,-523.72,0.00041448,120]
[394128487,1763310762058,-523.72,0.00041448,120]
[394128488,1763310762112,-523.72,0.00041448,120]
[394128489,1763310762166,-523.72,0.00041448,120]
[394128490,1763310762224,-523.72,0.00041448,120]
[394128491,1763310762282,-523.72,0.00041448,120]
[394128492,1763310762343,-523.72,0.00041448,120]
[394128493,1763310762400,-370.59359156,0.00041448,120]
[394128494,1763310762457,-523.72,0.00041448,120]
[394128495,1763310762515,-523.72,0.00041448,120]
[394128496,1763310762573,-523.72,0.00041448,120]
[394128497,1763310762626,-523.72,0.00041448,120]
[394128498,1763310762684,-523.72,0.00041448,120]
[394128499,1763310762739,-608.42818376,0.00041448,30]
[394128500,1763310762798,-523.72,0.00041448,120]
[394128501,1763310762850,-154.89235142,0.00041448,120]
[394128502,1763310762906,-500.0,0.00041448,120]
[394128503,1763310762961,-523.72,0.00041448,120]
[394128504,1763310763019,-500.0,0.00041448,120]
[394128505,1763310763074,-523.72,0.00041448,120]
[394128506,1763310763127,-500.0,0.00041448,120]
[394128507,1763310763181,-523.72,0.00041448,120]
[394128508,1763310763234,-500.0,0.00041448,120]
[394128509,1763310763286,-523.72,0.00041448,120]
[394128510,1763310763342,-598.60329596,0.00041448,120]
[394128511,1763310763397,-523.72,0.00041448,120]
[394128512,1763310763453,-523.72,0.00041448,120]
[394128513,1763310763506,-523.72,0.00041448,120]
[394128514,1763310763561,-523.72,0.00041448,120]
[394128515,1763310763609,-523.91026784,0.00041448,120]
[394128516,1763310763659,-402.54890449,0.00041448,120]
[394128517,1763310763711,-500.0,0.00041448,120]
[394128518,1763310763760,-500.0,0.00041448,120]
[394128519,1763310763808,-500.0,0.00041448,120]
[394128520,1763310763859,-500.0,0.00041448,120]
[394128521,1763310763909,-500.0,0.00041448,120]
[394128522,1763310763964,-500.0,0.00041448,120]
[394128523,1763310764014,-500.0,0.00041448,120]
[394128524,1763310764063,-249.47517878,0.00041448,120]
[394128525,1763310764115,-500.0,0.00041448,120]
[394128526,1763310764165,-500.0,0.00041448,120]
[394128527,1763310764218,-473.65553821,0.00041448,120]
[394128528,1763310764268,-370.33921345,0.00041448,30]
[394128529,1763310764317,-500.0,0.00041448,120]
[394128530,1763310764369,-500.0,0.00041448,120]
[394128531,1763310764420,-500.0,0.00041448,120]
[394128532,1763310764470,-500.0,0.00041448,120]
[394128533,1763310764520,-551.01722771,0.00041448,120]
[394128534,1763310764568,-500.0,0.00041448,120]
[394128535,1763310764616,-500.0,0.00041448,120]
[394128536,1763310764665,-500.0,0.00041448,120]
[394128537,1763310764717,-500.0,0.00041448,120]
[394128538,1763310764772,-186.40793695,0.00041448,120]
[394128539,1763310764825,-501.93593754,0.00041448,120]
[394128540,1763310764876,-500.0,0.00041448,120]
[394128541,1763310764926,-305.97450454,0.00041448,120]
[394128542,1763310764982,-500.0,0.00041448,120]
[394128543,1763310765040,-500.0,0.00041448,120]
[394128544,1763310765096,-500.0,0.00041448,120]
[394128545,1763310765147,-573.83855761,0.00041448,120]
[394128546,1763310765197,-227.90230026,0.00041448,30]
[394128547,1763310765246,-500.0,0.00041448,120]
[394128548,1763310765301,-500.0,0.00041448,120]
[394128549,1763310765356,-500.0,0.00041448,120]
[394128550,1763310765409,-500.0,0.00041448,120]
[394128551,1763310765673,-500.0,0.00041448,120]
[394128552,1763310765726,-565.48194806,0.00041448,120]
[394128553,1763310765776,-377.0682129,0.00041448,120]
[394128554,1763310765822,-500.0,0.00041448,120]
[394128555,1763310765869,-500.0,0.00041448,120]
[394128556,1763310765921,-500.0,0.00041448,120]
[394128557,1763310765973,-505.83153322,0.00041448,120]
[394128558,1763310766024,-500.0,0.00041448,120]
[394128559,1763310766072,-500.0,0.00041448,120]
[394128560,1763310766123,-500.0,0.00041448,120]
[394128561,1763310766173,-500.0,0.00041448,120]
[394128562,1763310766220,-414.96414719,0.00041448,120]
[394128563,1763310766265,-500.0,0.00041448,120]
[394128564,1763310766312,-500.0,0.00041448,120]
[394128565,1763310766360,-500.0,0.00041448,120]
[394128566,1763310766409,-500.0,0.00041448,120]
[394128567,1763310766461,-500.0,0.00041448,120]
[394128568,1763310766508,-500.0,0.00041448,120]
[394128569,1763310766555,-500.0,0.00041448,120]
[394128570,1763310766600,-328.44205909,0.00041448,120]
[394128571,1763310766643,-500.0,0.00041448,120]
[394128572,1763310766690,-500.0,0.00041448,120]
[394128573,1763310766736,-500.0,0.00041448,120]
[394128574,1763310766781,-500.0,0.00041448,120]
[394128575,1763310766827,-454.39,0.00041448,120]
[394128576,1763310766880,-529.12710173,0.00041448,120]
[394128577,1763310766935,-501.52961288,0.00041448,120]
[394128578,1763310766986,-708.37137878,0.00041448,120]
[394128579,1763310767038,-500.0,0.00041448,120]
[394128580,1763310767090,-500.0,0.00041448,120]
[394128581,1763310767140,-311.68842309,0.00041448,120]
[394128582,1763310767193,-500.0,0.00041448,120]
[394128583,1763310767245,-397.9092882,0.00041448,120]
[394128584,1763310767298,-349.1126362,0.00041448,30]
[394128585,1763310767351,-500.0,0.00041448,120]
[394128586,1763310767401,-500.0,0.00041448,120]
[394128587,1763310767453,-500.0,0.00041448,120]
[394128588,1763310767504,-500.0,0.00041448,120]
[394128589,1763310767558,-500.0,0.00041448,120]
[394128590,1763310767614,-500.0,0.00041448,120]
[394128591,1763310767668,-500.0,0.00041448,120]
[394128592,1763310767723,-500.0,0.00041448,120]
[394128593,1763310767774,-500.0,0.00041448,120]
[394128594,1763310767824,-500.0,0.00041448,120]
[394128595,1763310767874,-268.9405853,0.00041448,120]
[394128596,1763310767924,-500.0,0.00041448,120]
[394128597,1763310767974,-500.0,0.00041448,120]
[394128598,1763310768022,-408.2997291,0.00041448,120]
[394128599,1763310768071,-232.58379724,0.00041448,120]
[394128600,1763310768117,-500.0,0.00041448,120]
[394128601,1763310768167,-228.38301009,0.00041448,120]
[394128602,1763310768215,-500.0,0.00041448,120]
[394128603,1763310768262,-500.0,0.00041448,120]
[394128604,1763310768309,-500.0,0.00041448,120]
[394128605,1763310768359,-500.0,0.00041448,120]
[394128606,1763310768407,-500.0,0.00041448,120]
[394128607,1763310768457,-500.0,0.00041448,120]
[394128608,1763310768504,-475.49892007,0.00041448,120]
[394128609,1763310768552,-500.0,0.00041448,120]
[394128610,1763310768601,-377.20776063,0.00041448,120]
[394128611,1763310768649,-500.0,0.00041448,120]
[394128612,1763310768703,-500.0,0.00041448,120]
[394128613,1763310768752,-500.0,0.00041448,120]
[394128614,1763310768797,-191.14500361,0.00041448,120]
[394128615,1763310768846,-500.0,0.00041448,120]
[394128616,1763310768897,-500.0,0.00041448,120]
[394128617,1763310768949,-500.0,0.00041448,120]
[394128618,1763310769002,-500.0,0.00041448,120]
[394128619,1763310769060,-500.0,0.00041448,120]
[394128620,1763310769113,-500.0,0.00041448,120]
[394128621,1763310769170,-153.12080955,0.00041448,120]
[394128622,1763310769220,-500.0,0.00041448,120]
[394128623,1763310769267,-165.7984671,0.00041448,120]
[394128624,1763310769312,-403.62058902,0.00041448,120]
[394128625,1763310769358,-403.75410135,0.00041448,120]
[394128626,1763310769403,-203.89731262,0.00041448,120]
[394128627,1763310769448,-500.0,0.00041448,120]
[394128628,1763310769495,-491.32198232,0.00041448,120]
[394128629,1763310769542,-500.0,0.00041448,120]
[394128630,1763310769592,-500.0,0.00041448,120]
[394128631,1763310769639,-500.0,0.00041448,120]
[394128632,1763310769687,-500.0,0.00041448,120]
[394128633,1763310769735,-309.98099686,0.00041448,120]
[394128634,1763310769780,-500.0,0.00041448,120]
[394128635,1763310769826,-500.0,0.00041448,120]
[394128636,1763310769869,-500.0,0.00041448,120]
[394128637,1763310769919,-500.0,0.00041448,120]
[394128638,1763310769970,-500.0,0.00041448,120]
[394128639,1763310770021,-500.0,0.00041448,120]